Cogmind - Beta 14 @@@ ROGUE MODE // 2024.09.18 @ 13:09:54 Player: Dull Result: Destroyed by TU-WVH(R) with Subdweller Laser Performance ------------- Evolutions (0) 0 Regions Visited (2) 400 Robots Destroyed (41) 205 Value Destroyed (882) 882 Prototype IDs (0) 0 Alien Tech Used (0) 0 Bonus (0) 0 TOTAL SCORE: 1487 Bonus ------- None Cogmind --------- Core Integrity 0/250 Matter 282/300 Energy 250/250 System Corruption 3% Temperature Cool (6) Movement Rolling (110) Location -10/Subcaves Parts ------- > --- POWER (1) -------- Ion Engine > --- PROPULSION (2) --- Subdweller Monowheel Subdweller Monowheel > --- UTILITY (2) ------ Large Storage Unit Core Shielding > --- WEAPON (2) ------- Battle Rifle Battle Cannon > --- INVENTORY (15) --- Ion Engine Subdweller Power Source Spiked Treads Heat Sink Large Storage Unit High-capacity Matter Pod (200) Sensor Array ECM Suite ECM Suite Tractor Beam Subdweller Laser Slug Cannon Grenade Launcher Subdweller Shrapnel Launcher Mining Laser Peak State ------------ > --- POWER ------------ Light Ion Engine > --- PROPULSION ------- Subdweller Monowheel Subdweller Monowheel > --- UTILITY ---------- Large Storage Unit Core Shielding > --- WEAPON ----------- Battle Rifle Subdweller Machine Gun > --- INVENTORY -------- Ion Engine Wheel Heat Sink Large Storage Unit High-capacity Matter Pod Sensor Array ECM Suite ECM Suite Tractor Beam Subdweller Machine Gun Battle Cannon Slug Cannon Grenade Launcher Grenade Launcher Mining Laser [Rating: 13] Favorites ----------- Power Light Ion Engine Engine Light Ion Engine Propulsion Light Treads Treads Light Treads Leg Aluminum Leg Wheel Subdweller Monowheel Utility Large Storage Unit Device Seismic Detector Storage Large Storage Unit Protection Core Shielding Weapon Light Assault Rifle Energy Gun Small Laser Ballistic Gun Light Assault Rifle Ballistic Cannon Battle Cannon Launcher Grenade Launcher Build | -11 -10 -10 ------- Run | Yrd Mat Sub Slots Evolved . | . . . Power . | . . . Propulsion . | . . . Utility . | . . . Weapon . | . . . Parts Attached 48 | 4 27 17 Power 9 | . 5 4 Engine 9 | . 5 4 Core . | . . . Reactor . | . . . Propulsion 13 | 2 5 6 Treads 9 | 2 5 2 Leg . | . . . Wheel 4 | . . 4 Hover . | . . . Flight . | . . . Utility 6 | 1 5 . Device 2 | 1 1 . Storage 2 | . 2 . Processor . | . . . Hackware . | . . . Protection 2 | . 2 . Artifact . | . . . Weapon 20 | 1 12 7 Energy Gun 1 | . 1 . Energy Cannon . | . . . Ballistic Gun 16 | 1 9 6 Ballistic Cannon 1 | . . 1 Launcher 2 | . 2 . Special Weapon . | . . . Impact Weapon . | . . . Slashing Weapon . | . . . Piercing Weapon . | . . . Special Melee Weapon . | . . . Unidentified Prototypes . | . . . Parts Lost 4 | . . 4 Power . | . . . Propulsion 3 | . . 3 Utility . | . . . Weapon 1 | . . 1 Highest Loss Streak 1 | . . 1 To Critical Strikes 1 | . . 1 Average Slot Usage (%) 99 | . 99 99 Engine 14 | . 14 14 Treads 25 | . 27 23 Wheel 2 | . . 4 Device 4 | . 8 . Storage 14 | . 14 14 Protection 9 | . 5 14 Ballistic Gun 26 | . 27 24 Peak Build Rating 13 | 7 8 13 Average Rating 9 | 6 7 10 On Entrance 7 | 6 7 8 Naked Turns . | . . . Heaviest Build 32 | 12 30 32 Greatest Support 40 | 40 40 40 Greatest Overweight (x) 2 | . 1 2 Average Overweight (x) . | . . . Largest Inventory Capacity 15 | 8 15 15 Average Capacity 14 | 8 13 15 Most Carried 15 | 7 15 15 Average Carried 13 | 5 12 14 Final Capacity 15 | 8 15 15 Final Carried 15 | 3 15 15 Class Distribution -------------------- 98% | Mutant Dominant Class ---------------- Mutant | -10/Materials Mutant | -10/Subcaves Resources | -11 -10 -10 ----------- Run | Yrd Mat Sub Matter Collected 1240 | 244 419 577 Remotely . | . . . Salvage Created 1285 | 70 610 605 Parts 89 | 3 50 36 Haulers Intercepted 2 | . 2 . Recyclers Shooed 3 | . 3 . Parts Field Recycled . | . . . Retrieved Matter . | . . . Parts Self-Destructed 12 | . . 12 Prevented . | . . . Kills | -11 -10 -10 ------- Run | Yrd Mat Sub Combat Hostiles Destroyed 29 | . 16 13 Guns 25 | . 13 12 Cannons 1 | . . 1 AOE 3 | . 3 . Classes Destroyed 10 | 2 6 2 Builder 1 | . 1 . Tunneler 2 | 1 1 . Hauler 2 | . 2 . Recycler 3 | 1 2 . Operator 1 | . 1 . Watcher 3 | . 3 . Swarmer 12 | . 12 . Grunt 6 | . 4 2 Cobbler 1 | . . 1 Subdweller 11 | . . 11 Best Kill Streak 6 | 2 6 2 Combat Bots Only 4 | . 4 2 Max Kills in Single Turn 2 | 1 2 1 Gunslinging . | . . . Exploded 1 | . 1 . Melee . | . . . Uniques/NPCs Destroyed . | . . . Combat | -11 -10 -10 -------- Run | Yrd Mat Sub Hostile Shots Fired 134 | . 71 63 Missed 40 | . 23 17 Damage Taken 1297 | . 418 879 Core 262 | . 59 203 Absorbed by Shields . | . . . Redirected to Shielding 46 | . . 46 Regen/Repaired (Parts) 89 | . 89 . Core Remaining (%) 100 | 100 . . Volleys Fired 122 | 4 65 53 Largest 2 | 2 2 2 Hottest 69 | 60 40 69 Shots Fired 236 | 8 125 103 Gun 229 | 8 120 101 Cannon 2 | . . 2 Launcher 5 | . 5 . Special . | . . . Kinetic 205 | 4 120 81 Thermal 22 | . . 22 Explosive 5 | . 5 . Electromagnetic 4 | 4 . . Robot Hit Streak 47 | 3 17 47 Robot Miss Streak 4 | 2 4 2 Penetration Max . | . . . Secondary Targets 4 | . 4 . Max Gunslinging Chain 1 | . 1 . Shots Hit Robots 177 | 4 85 88 Core Hits 84 | 3 49 32 Critical Kills 1 | . . 1 Critical Parts Destroyed . | . . . Critical Strikes 1 | . . 1 Destroy 1 | . . 1 Melee Attacks . | . . . Impact . | . . . Slashing . | . . . Piercing . | . . . Sneak Attacks . | . . . Combat Hostiles . | . . . Follow-up Attacks . | . . . Damage Inflicted 2425 | 47 1092 1286 Guns 1984 | 47 697 1240 Cannons 46 | . . 46 Explosions 395 | . 395 . Melee . | . . . Ramming . | . . . Kinetic 1741 | 9 697 1035 Thermal 251 | . . 251 Explosive 395 | . 395 . Electromagnetic 38 | 38 . . Impact . | . . . Slashing . | . . . Piercing . | . . . Highest Corruption 3 | . 3 3 Average Corruption 2 | . 2 3 Corruption Purged . | . . . Corruption Blocked . | . . . Effects 37 | . 14 23 Message Errors 8 | . 2 6 Matter Fused 4 | . 2 2 Heat Flow Errors 6 | . 4 2 Energy Discharges 5 | . 2 3 Parts Rejected 1 | . . 1 Data Loss (minor) 7 | . 4 3 Data Loss (major) 3 | . . 3 Misfires 2 | . . 2 Alerts 1 | . . 1 Overload Shots . | . . . Overflow Damage 11 | . 11 . Projectiles . | . . . Explosions 11 | . 11 . Melee . | . . . Knockbacks . | . . . Impact . | . . . Kinetic . | . . . Secondary . | . . . Self-Inflicted Damage 17 | . 17 . Shots 1 | . 1 . Rammed . | . . . Targets Rammed . | . . . Kicked . | . . . Crushed . | . . . Highest Temperature 263 | 20 263 151 Average Temperature 85 | 15 95 68 Received Heat Transfer 180 | . 60 120 Siege Activations . | . . . Robots Corrupted . | . . . Combat Hostiles . | . . . Parts Fried . | . . . Impact Corruptions . | . . . Robots Melted . | . . . Combat Hostiles . | . . . Parts Melted . | . . . Heat Transferred 550 | . . 550 Parts Sabotaged . | . . . Parts Stolen . | . . . Parts Stripped . | . . . Power Chain Reactions . | . . . Alert | -11 -10 -10 ------- Run | Yrd Mat Sub Peak Influence 276 | 10 276 . Initial 6 | . 6 . Average 126 | 8 130 . Maximum Alert Level 1 | . 1 . Low Security (%) 91 | 100 91 . Level 1 8 | . 8 . Level 2 . | . . . Level 3 . | . . . Level 4 . | . . . Level 5 . | . . . High Security . | . . . Max Security . | . . . Squads Dispatched 2 | . 2 . Investigation 2 | . 2 . Extermination . | . . . Reinforcement . | . . . Assault . | . . . Garrison . | . . . Intercept . | . . . Searches Triggered . | . . . Construction Impeded . | . . . Haulers Reinforced . | . . . Active Scanning Responses . | . . . Cargo Convoy Interrupts . | . . . Stealth | -11 -10 -10 --------- Run | Yrd Mat Sub Distress Signals 4 | . 4 . Communications Jammed . | . . . Distress Signals . | . . . Times Spotted 43 | . 27 16 Peak Tracking Total 4 | . 4 3 Tactical Retreats . | . . . Traps | -11 -10 -10 ------- Run | Yrd Mat Sub Traps Triggered 6 | . 6 . Indirectly . | . . . Trap Hack Attempts . | . . . Triggered . | . . . Disarmed . | . . . Reprogrammed . | . . . Reused . | . . . Traps Extracted . | . . . Installed . | . . . Triggered . | . . . Machines | -11 -10 -10 ---------- Run | Yrd Mat Sub Machines Disabled 1 | . 1 . Max in Single Turn 1 | . 1 . Machines Repaired . | . . . Machines Dismantled . | . . . Machines Sabotaged . | . . . Overloaded Fab Kills . | . . . Hacking | -11 -10 -10 --------- Run | Yrd Mat Sub Machines Accessed 11 | . 11 . Terminals 8 | . 8 . Fabricators . | . . . Repair Stations 1 | . 1 . Recycling Units 2 | . 2 . Scanalyzers . | . . . Garrison Access . | . . . Total Hacks 39 | . 39 . Successful 24 | . 24 . Failed 15 | . 15 . Catastrophic 2 | . 2 . Database Lockouts . | . . . Manual 30 | . 30 . Terminals 26 | . 26 . Fabricators . | . . . Repair Stations 6 | . 6 . Recycling Units 7 | . 7 . Scanalyzers . | . . . Garrison Access . | . . . Terminal Hacks 6 | . 6 . Robot Analysis 5 | . 5 . Recall Investigation 1 | . 1 . Fabricator Hacks . | . . . Repair Station Hacks 4 | . 4 . Scan Component 2 | . 2 . Repair 2 | . 2 . Recycling Unit Hacks . | . . . Scanalyzer . | . . . Garrison Access Hacks . | . . . Unauthorized Hacks 14 | . 14 . Terminals 8 | . 8 . Botnet 8 | . 8 . Fabricators . | . . . Repair Stations . | . . . Recycling Units 6 | . 6 . Monitor 2 | . 2 . Reject 2 | . 2 . Mask 2 | . 2 . Scanalyzers . | . . . Garrison Access . | . . . Data Cores Recovered . | . . . Used . | . . . Hacking Detections 9 | . 9 . Full Trace Events 3 | . 3 . Feedback Events . | . . . Feedback Blocked . | . . . Robot Schematics Acquired . | . . . Robots Built . | . . . Authchips . | . . . Time . | . . . Total Robot Build Rating . | . . . Part Schematics Acquired . | . . . Parts Built . | . . . Authchips . | . . . Time . | . . . Total Part Build Rating . | . . . Parts Repaired 2 | . 2 . Time 52 | . 52 . Parts Recycled . | . . . Recycled Matter . | . . . Retrieved Matter . | . . . Retrieved Components . | . . . Parts Scanalyzed . | . . . Part Schematics Acquired . | . . . Parts Damaged . | . . . Bothacking | -11 -10 -10 ------------ Run | Yrd Mat Sub Used RIF Installer . | . . . Robots Hacked . | . . . Non-combat . | . . . Combat . | . . . Robot Hacks Applied . | . . . Relay Couplers Released . | . . . Fabnet Peak Effective % . | . . . Robots Rewired . | . . . Allies Hacked . | . . . Hacks Repelled . | . . . Allies | -11 -10 -10 -------- Run | Yrd Mat Sub Total Allies . | . . . Largest Group . | . . . Highest-Rated Group . | . . . Highest-Rated Ally . | . . . Total Orders . | . . . Ally Attacks . | . . . Total Damage . | . . . Kills . | . . . Allies Corrupted . | . . . Allies Melted . | . . . Intel | -11 -10 -10 ------- Run | Yrd Mat Sub Robot Analysis Total 5 | . 5 . Derelict Logs Recovered . | . . . Drone Launches . | . . . Drone Recoveries . | . . . Exploration | -11 -10 -10 ------------- Run | Yrd Mat Sub Turns Passed 3550 | 61 1780 1709 Spaces Moved 1909 | 32 917 960 Core . | . . . Treads 1649 | 8 917 724 Legs 24 | 24 . . Wheels 236 | . . 236 Hover . | . . . Flight . | . . . Fastest Speed 110 | 120 160 110 Average Speed 153 | 130 160 147 Slowest Speed 240 | 160 240 160 Overloaded Moves . | . . . Propulsion Burnouts . | . . . Robots Hopped . | . . . Cave-ins Triggered . | . . . Exploration Rate (%) 49 | 2 100 47 Regions Visited 2 Branch Regions 1 Pre-discovered Areas . | . . . Known Exits Taken . | . . . Unknown Exits Taken 2 | 1 1 . Scrap Searched 3 | . . 3 Spaces Dug 8 | . 8 . Terrain Destroyed 24 | . 24 . Melee . | . . . Projectile . | . . . AOE 24 | . 24 . Terrain Rammed . | . . . Walls Destroyed . | . . . Machines Disabled . | . . . Actions | -11 -10 -10 --------- Run | Yrd Mat Sub Total 2334 | 44 1129 1161 Wait 192 | . 84 108 Move 1907 | 31 916 960 Hop . | . . . Pick Up 30 | 1 19 10 Fast Attach 9 | 1 8 . Attach 7 | . . 7 Detach . | . . . Swap 32 | 3 19 10 Drop 35 | 4 18 13 Fire 122 | 4 65 53 Melee . | . . . Ram . | . . . Kick . | . . . Crush . | . . . Escape Stasis . | . . . Rewire . | . . . Trap . | . . . Miscellaneous . | . . . Route ------- -11/Scrapyard -10/Materials (discovered 6 exits: [*Mat x3] / [*Min x2] / [*Sub]) -10/Subcaves History --------- Turn | Location | Event 1 | -11/Scrapyard | Discovered new exit (range 3) 62 | -11/Scrapyard | Entered Materials 274 | -10/Materials | Discovered new exit (range 15) 307 | -10/Materials | Build established: Mutant 672 | -10/Materials | Discovered new exit (range 6) 715 | -10/Materials | Repaired Lgt. Treads 743 | -10/Materials | Repaired Lgt. Treads 1004 | -10/Materials | Discovered new exit (range 6) 1450 | -10/Materials | Discovered new exit (range 16) 1678 | -10/Materials | Discovered new exit (range 16) 1824 | -10/Materials | Discovered new exit (range 8) 1842 | -10/Materials | Entered Subcaves 1932 | -10/Subcaves | Curiously followed by a Cobbler waking with a query about "LVR3C" 1936 | -10/Subcaves | Ambushed by angry Subdweller bent on revenge 1957 | -10/Subcaves | Shifting Twisted Machinery released Battle Rifle 2037 | -10/Subcaves | Shifting Twisted Machinery released Slug Cannon 2097 | -10/Subcaves | Disturbed a concealed Subdweller 2355 | -10/Subcaves | A swath of the cavern ceiling suddenly collapsed 2667 | -10/Subcaves | Core integrity fell below 50% 3546 | -10/Subcaves | A Subdweller sparked back to life 3546 | -10/Subcaves | A Subdweller sparked back to life 3546 | -10/Subcaves | A Subdweller sparked back to life 3548 | -10/Subcaves | Core integrity fell below 20% 3551 | -10/Subcaves | Destroyed by TU-WVH(R) with Subdweller Laser Last Messages --------------- 03381_ Dropped Broken Sub. Machine Gun. 03382_ 3J-8E2(R) destroyed. 03383_ Subatomizers dissect the Sub. Optics. 03386_ Acquired 25 matter. 03389_ Acquired Sub. Power Source. 03392_ Acquired Sub. Laser. 03395_ Acquired 2 matter. 03396_ Subatomizers dissect the Sub. Optics. 03424_ Dropped Sub. Machine Gun. 03437_ Dropped Grenade Launcher. 03438_ Acquired Sub. Shrapnel Launcher. 03444_ Acquired 10 matter. 03446_ Dropped Lgt. Ion Engine. 03466_ System corrupted: Energy discharge (-65). 03467_ Acquired 10 matter. 03539_ Dropped Sub. Monowheel. 03544_ System corrupted: Substantial component data lost. 03546_ 2R-ZE5(R) creaks and sparks as it begins to move. 03546_ SZ-64E(R) creaks and sparks as it begins to move. 03546_ TU-WVH(R) creaks and sparks as it begins to move. Map ----- +----------------------------------------------------+ | ??????????????????????????# [ ### # ## ### | | ??????????????????????????# | | ?????????????????????????## | | ?????????????????????????# #### #### ## | | ?????????????????????????# ####???####???#### | | ????????????????????????## ] ##????## ##?????##&* | | ????????????????????????# ###### #??????##% | | ????????????????????????## # #######?#! | | ?????????????????????????#### [ ###! | | ????????????????????????????# #?#[ | | ???????????????????????????# # ## #?## | | ?????????????????????????# #### #### | | ?????????????????????????#" ##?# # # | | ?????????????????????????#"" ##??## ### | | ????????????????????????""# ###????##### ## # | | ????????????????????????""" ?#?###### ####### | | ???????????????????????? " ## # # ##?????? | | ???????????????????????? " ##??###?? | | ????????????????????????""" ##??# ##? | | ????????????????????????? ## #### ## | | ?????????????????????????? ??### ## # | | ?????????????????????????######### # | | ???????????????????????###### ## # | | ?????????####??????????# ### ## #### ## | | ???????? ####### ### ## ##?# ##? | | ???????? @ #### ## ##?####?? | | ???????? &# #??????? | | ???????????# ## # < = ####??????? | | ???????????????????## R " ## ### ## #?????????? | | ????????????????????# % ""#####?########?????????? | | ????????????????????# &" #??????????????????????? | | ????????????????????#######??????????????????????? | | ?????????????????????????????????????????????????? | | ?????????????????????????????????????????????????? | | ?????????????????????????????????????????????????? | | ?????????????????????????????????????????????????? | | ?????????????????????????????????????????????????? | | ?????????????????????????????????????????????????? | | ?????????????????????????????????????????????????? | | ?????????????????????????????????????????????????? | | ?????????????????????????????????????????????????? | | ?????????????????????????????????????????????????? | | ?????????????????????????????????????????????????? | | ?????????????????????????????????????????????????? | | | | | | | | | | | | | +----------------------------------------------------+ Best States ------------- Heat Dissipation 25 Energy Generation 10 Energy Capacity 250 Matter Stores 300 Matter Capacity 300 Sight Range 16 Terrain Scan Density 10 Core Shielding 20 Evasion (%) 45 Recoil Reduction 2 Item Schematics ----------------- None Robot Schematics ------------------ None Fabricated ------------ Nothing Alien Tech Used ----------------- None Achievements -------------- None Challenges ------------ None Game ------ Seed LegCargoDerivative Manual? 0 Play Time 00:20:39 Cumulative 107.3 hours Start 2024.09.18 @ 12:49:03 End 2024.09.18 @ 13:09:54 Sessions 1 Manual Loads 0 Difficulty Rogue Special Mode None Game No. 145 Rogue 145 Adventurer 0 Explorer 0 Win Type - Total 1 Types 1/0/0/0/0/0/0/0/0 Lore% 22 Gallery% 56 Achievement% 44 Wizard Run 0 Options --------- Layout 0 ASCII 0 Keyboard 0 Movement Mouse Keybinds 1 Fullscreen 1 Font 18/TerminusBold Map View 76x50 Zoom Use 0% Tactical HUD 1 Map Filters NONE Filters NONE Steam 1 RUN: ee4977c7-3222-4ae4-ad91-a10e56cdacd8